lending/lending_fUSD_20240207
["ID","MTS","AMOUNT","RATE_DAILY","PERIOD"]
[313390258,1707264093410,150.0,0.00022263,2]
[313390259,1707264223507,1444.06965761,0.00021833,2]
[313390260,1707264223773,1444.06965761,0.0002215,2]
[313390261,1707264224099,1444.06965761,0.00022326,2]
[313390263,1707264326018,563.81510033,0.00020201,2]
[313390264,1707264341710,1005.86579131,0.00020428,2]
[313390265,1707264345452,1444.06965761,0.00022433,2]
[313390266,1707264365443,858.66470521,0.00020428,2]
[313390267,1707264370563,6097.38513295,0.00020428,2]
[313390268,1707264382033,500.0,0.00020428,2]
[313390269,1707264387690,1005.86579131,0.00020428,2]
[313390270,1707264388563,6097.38513295,0.00020428,2]
[313390271,1707264390405,1025.34814346,0.00020428,2]
[313390272,1707264390643,534.42411814,0.00020428,2]
[313390273,1707264390909,2327.96064877,0.00020428,2]
[313390274,1707264393440,859.4223849,0.00020428,2]
[313390275,1707264394913,5202.33214498,0.00020428,2]
[313390276,1707264395947,1101.04178806,0.00020428,2]
[313390277,1707264400054,1122.3360965,0.00020428,2]
[313390278,1707264404569,6097.38513295,0.00020428,2]
[313390279,1707264408014,561.86622075,0.00020201,2]
[313390280,1707264408896,2327.96064877,0.00020428,2]
[313390281,1707264409498,857.90702552,0.00020428,2]
[313390282,1707264414012,500.0,0.00020428,2]
[313390283,1707264414042,1025.34814346,0.00020428,2]
[313390284,1707264415942,2187.64640673,0.00020224,2]
[313390285,1707264416610,534.63116618,0.00020428,2]
[313390286,1707264418910,5202.33214498,0.00020428,2]
[313390287,1707264420102,1101.04178806,0.00020428,2]
[313390288,1707264421797,1005.86579131,0.00020428,2]
[313390289,1707264423894,1122.3360965,0.00020428,2]
[313390290,1707264430019,561.86622075,0.00020201,2]
[313390291,1707264430922,2327.96064877,0.00020428,2]
[313390292,1707264434002,1025.76280394,0.00020428,2]
[313390293,1707264434037,500.0,0.00020428,2]
[313390294,1707264434621,534.63116618,0.00020428,2]
[313390295,1707264434903,5202.33214498,0.00020428,2]
[313390296,1707264435950,2187.64640673,0.00020224,2]
[313390297,1707264435983,1101.04178806,0.00020428,2]
[313390298,1707264437248,809.5851531,0.00020428,2]
[313390299,1707264439698,1005.86579131,0.00020428,2]
[313390300,1707264442780,19040.44071311,0.00020428,2]
[313390301,1707264443889,1122.77547519,0.00020428,2]
[313390302,1707264447510,858.66470521,0.00020428,2]
[313390303,1707264448580,6099.83638977,0.00020428,2]
[313390304,1707264450011,561.86622075,0.00020201,2]
[313390305,1707264451241,809.5851531,0.00020428,2]
[313390306,1707264452001,1025.76280394,0.00020428,2]
[313390307,1707264452614,534.01002206,0.00020428,2]
[313390308,1707264454009,500.0,0.00020428,2]
[313390309,1707264456785,19040.44071311,0.00020428,2]
[313390310,1707264456909,2327.96064877,0.00020428,2]
[313390311,1707264457952,2187.64640673,0.00020224,2]
[313390312,1707264457995,1101.04178806,0.00020428,2]
[313390313,1707264461691,298.46618988,0.00020428,2]
[313390314,1707264464905,5202.33214498,0.00020428,2]
[313390315,1707264465241,809.5851531,0.00020428,2]
[313390316,1707264465892,1121.89671781,0.00020428,2]
[313390317,1707264467529,858.66470521,0.00020428,2]
[313390318,1707264468017,561.86622075,0.00020201,2]
[313390319,1707264468590,6099.83638977,0.00020428,2]
[313390320,1707264471816,19040.44071311,0.00020428,2]
[313390321,1707264474626,535.04346075,0.00020428,2]
[313390322,1707264476144,1024.5188225,0.00020428,2]
[313390323,1707264477943,678.05260258,0.00020224,2]
[313390324,1707264478010,1101.04178806,0.00020428,2]
[313390325,1707264480910,2326.11843272,0.00020428,2]
[313390326,1707264481243,809.5851531,0.00020428,2]
[313390327,1707264485691,1006.24250473,0.00020428,2]
[313390328,1707264486026,561.86622075,0.00020201,2]
[313390329,1707264486582,6102.26699887,0.00020428,2]
[313390330,1707264487894,1121.11770245,0.00020428,2]
[313390331,1707264489507,860.02123098,0.00020428,2]
[313390332,1707264489788,19040.44071311,0.00020428,2]
[313390333,1707264490615,533.80477553,0.00020428,2]
[313390334,1707264492008,501.32168083,0.00020428,2]
[313390335,1707264492911,860.84268204,0.00020428,2]
[313390336,1707264497999,1095.68052298,0.00020428,2]
[313390337,1707264498819,270.82946089,0.00020428,2]
[313390338,1707264499258,809.5851531,0.00020428,2]
[313390339,1707264501715,362.36944005,0.00020428,2]
[313390340,1707264502380,283.85892407,0.00020428,2]
[313390341,1707264502945,744.16390881,0.00021563,2]
[313390342,1707264504166,155.0,0.00020428,2]
[313390343,1707264504600,6102.26699887,0.00020428,2]
[313390344,1707264504814,306.65995784,0.00020428,2]
[313390345,1707264505500,948.1774915,0.00020428,2]
[313390346,1707264505689,1006.24250473,0.00020428,2]
[313390347,1707264509069,406.51680293,0.00022017,2]
[313390348,1707264509837,162.66775705,0.00020428,2]
[313390349,1707264510942,735.20388499,0.00021,2]
[313390350,1707264511998,1101.45649291,0.00020428,2]
[313390351,1707264512026,943.73374824,0.00020428,2]
[313390352,1707264512361,158.9509689,0.0002179,2]
[313390353,1707264513403,439.5286448,0.00020428,2]
[313390354,1707264513786,15018.07689299,0.00020428,2]
[313390355,1707264513810,4022.36382012,0.00020428,2]
[313390356,1707264518039,250.99144104,0.00020201,2]
[313390357,1707264518225,381.02960915,0.00020428,2]
[313390358,1707264518617,534.42411814,0.00020428,2]
[313390359,1707264519714,362.36944005,0.00020428,2]
[313390360,1707264520188,155.85105563,0.00020428,2]
[313390361,1707264520586,6102.26699887,0.00020428,2]
[313390362,1707264521270,809.5851531,0.00020428,2]
[313390363,1707264527714,559.08416051,0.00020428,2]
[313390364,1707264529997,314.59208232,0.00020428,2]
[313390365,1707264536283,19040.44071311,0.00020428,2]
[313390366,1707264537270,893.07798193,0.00020428,2]
[313390367,1707264539718,362.36944005,0.00020428,2]
[313390368,1707264552590,1181.14536076,0.00020428,2]
[313390369,1707264558790,19040.44071311,0.00020428,2]
[313390370,1707264565718,362.36944005,0.00020428,2]
[313390371,1707264578787,14883.55029952,0.00020428,2]
[313390372,1707264601730,362.36944005,0.00020428,2]
[313390373,1707264601756,267.71520337,0.00020428,2]
[313390374,1707264617751,267.71520337,0.00020428,2]
[313390375,1707264623727,472.03283061,0.00020428,2]
[313390399,1707264631618,-1000.0,0.00022599,2]
[313390401,1707264631627,-150.0,0.00022699,2]
[313390403,1707264631636,-34.4109398,0.000227,2]
[313390404,1707264631649,-39418.82933617,0.000227,2]
[313390405,1707264631658,-159.0326438,0.000227,2]
[313390406,1707264631668,-9611.6788,0.000228,2]
[313390407,1707264631677,-500.0,0.000228,2]
[313390408,1707264631687,-1000.0,0.000228,2]
[313390409,1707264631698,-19452.61771719,0.000228,2]
[313390410,1707264631712,-3304.51694826,0.000228,2]
[313390411,1707264631734,-1188.7728,0.000228,2]
[313390412,1707264631748,-1123.15240971,0.000228,2]
[313390413,1707264631762,-1306.30499939,0.000228,2]
[313390414,1707264631783,-579.93156402,0.000228,2]
[313390415,1707264631795,-516.09812629,0.000228,2]
[313390416,1707264631807,-1044.20921404,0.000228,2]
[313390463,1707264637846,-3170.93065347,0.000228,2]
[313390464,1707264637860,-639.79636647,0.000228,2]
[313390465,1707264637873,-1061.1227723,0.000228,2]
[313390466,1707264637885,-37537.64632886,0.000228,2]
[313390467,1707264637895,-2500.0,0.000228,2]
[313390468,1707264637905,-1444.06965761,0.00022893,2]
[313390469,1707264637914,-4581.61558961,0.000229,2]
[313390470,1707264637926,-840.12646889,0.000229,2]
[313390471,1707264637938,-2448.97906135,0.000229,2]
[313390472,1707264637953,-2645.06792185,0.000229,2]
[313390473,1707264637965,-728.69447258,0.000229,2]
[313390474,1707264637977,-741.27723955,0.000229,2]
[313390475,1707264637990,-420.8888349,0.000229,2]
[313390476,1707264638002,-313.89851893,0.000229,2]
[313390477,1707264638015,-8532.71992477,0.000229,2]
[313390478,1707264638028,-639.0403552,0.000229,2]
[313390479,1707264638041,-3362.12,0.000229,2]
[313390480,1707264638053,-3604.75439047,0.000229,2]
[313390481,1707264638064,-252.000007,0.000229,2]
[313390482,1707264638081,-6170.57082958,0.000229,2]
[313390483,1707264638093,-2403.0939845,0.000229,2]
[313390484,1707264638105,-14668.88156567,0.000229,2]
[313390485,1707264638115,-39241.2913362,0.000229,2]
[313390486,1707264638125,-5000.0,0.000229,2]
[313390487,1707264638135,-188.79397857,0.000229,2]
[313390488,1707264638145,-352.48406208,0.000229,2]
[313390489,1707264638154,-5689.22413867,0.000229,2]
[313390490,1707264638163,-1765.09227039,0.000229,2]
[313390492,1707264638173,-1120.00623693,0.000229,2]
[313390494,1707264638182,-517.16610711,0.000229,2]
[313390495,1707264638192,-177.39101736,0.000229,2]
[313390497,1707264638201,-722.22,0.00022996,2]
[313390499,1707264638211,-733.6,0.00022997,2]
[313390500,1707264638220,-500.0,0.00022999,2]
[313390501,1707264638229,-500.0,0.00022999,2]
[313390502,1707264638239,-500.0,0.00022999,2]
[313390503,1707264638248,-365.71934557,0.00022999,2]
[313390504,1707264638261,-147.50811546,0.00022999,2]
[313390505,1707264638270,-500.0,0.00022999,2]
[313390506,1707264638279,-500.0,0.00022999,2]
[313390507,1707264638289,-435.46165342,0.00022999,2]
[313390508,1707264638298,-500.0,0.00022999,2]
[313390509,1707264638307,-29.34718602,0.00022999,2]
[313390512,1707264641086,-341.90360003,0.00022999,2]
[313390513,1707264641097,-374.64563956,0.00022999,2]
[313390555,1707264641773,267.71520337,0.00020428,2]
[313390563,1707264642836,-3.7783289,0.00022999,2]
[313390564,1707264642846,-364.14830583,0.00022999,2]
[313390565,1707264642856,-395.6975279,0.00022999,2]
[313390566,1707264642865,-487.43329646,0.00022999,2]
[313390567,1707264642874,-201.62433526,0.00022999,2]
[313390581,1707264645690,-5000.0,0.000229,2]
[313390583,1707264645700,-260.87327839,0.00022999,2]
[313390585,1707264645709,-500.0,0.00022999,2]
[313390587,1707264645719,-293.08,0.00022999,2]
[313390588,1707264645729,-187682.05218826,0.00023,2]
[313390589,1707264645905,-260.93858434,0.00023,2]
[313390590,1707264661749,165.35207501,0.00020428,2]
[313390591,1707264671432,612.36357773,0.00021,2]
[313390592,1707264684950,732.77315016,0.00021,2]
[313390593,1707264689418,612.36357773,0.00021,2]
[313390594,1707264705425,612.36357773,0.00021,2]
[313390595,1707264727429,608.39318941,0.00021,2]
[313390596,1707264830964,733.0092658,0.00021,2]
[313390597,1707264854970,733.0092658,0.00021,2]
[313390598,1707264870965,733.0092658,0.00021,2]
[313390599,1707264888978,733.0092658,0.00021,2]
[313390600,1707264907101,733.0092658,0.00021,2]
[313390601,1707264924974,710.20077457,0.00021,2]
[313390602,1707265000680,432.43,0.00021464,2]
[313390603,1707265079503,10117.663612,0.00022485,2]
[313390604,1707265203329,150.0,0.00022485,2]
[313390605,1707265203771,150.0,0.00022485,2]
[313390606,1707265203993,249.56561815,0.00022485,2]
[313390607,1707265258928,767.2,0.00022422,2]
[313390608,1707265299549,2000.0,0.00022371,2]
[313390609,1707265339313,484.28,0.00022371,2]
[313390610,1707265350407,250.0,0.00022271,2]
[313390611,1707265406556,10000.0,0.00022271,2]
[313390612,1707265452822,434.18,0.000204,2]
[313390613,1707265476817,263.14,0.00022318,2]
[313390614,1707265525856,358.58,0.00022318,2]
[313390615,1707265542339,23900.0,0.00022318,2]
[313390616,1707265558921,200.0,0.00022409,2]
[313390617,1707265586949,150.0,0.00022,2]
[313390618,1707265592186,2249.52,0.00022497,2]
[313390619,1707265601900,230.65,0.00022474,2]
[313390620,1707265631410,200.0,0.00022433,2]
[313390621,1707265655527,150.0,0.00022,2]
[313390627,1707265831831,-10000.0,0.00022509,2]
[313390628,1707265831840,-2000.0,0.00022532,2]
[313390629,1707265831849,-169.02,0.00022532,2]
[313390630,1707265831858,-200.0,0.00022534,2]
[313390631,1707265831867,-2476.89,0.00022534,2]
[313390632,1707265831876,-250.0,0.00022563,2]
[313390633,1707265831885,-150.0,0.00022598,2]
[313390634,1707265831894,-300.0,0.00022598,2]
[313390635,1707265831903,-155.8256877,0.00022599,2]
[313390636,1707265831912,-150.0,0.00022634,2]
[313390637,1707265831921,-2039.01,0.00022634,2]
[313390638,1707265831930,-209.36,0.00022641,2]
[313390639,1707265831939,-434.18,0.00022664,2]
[313390640,1707265831949,-327.5629,0.00022699,2]
[313390641,1707265831959,-789.7785,0.00022699,2]
[313390642,1707265831968,-300.0,0.000227,2]
[313390643,1707265831977,-378.24,0.0002275,2]
[313390644,1707265831986,-281.9797924,0.00022768,2]
[313390645,1707265831996,-499.99,0.00022768,2]
[313390646,1707265832005,-3230.0,0.0002277,2]
[313390647,1707265832014,-162.3492961,0.00022797,2]
[313390648,1707265832024,-269601.97796139,0.00022799,2]
[313390649,1707265832036,-395.76320725,0.00022799,2]
[313390650,1707265832048,-1645.13202341,0.00022799,2]
[313390651,1707265832061,-16797.62890576,0.00022799,2]
[313390652,1707265832074,-412.77292295,0.00022799,2]
[313390653,1707265834116,-2954.67761916,0.00022799,2]
[313390654,1707265834130,-2013.91252975,0.00022799,2]
[313390655,1707265834156,-619.10457445,0.00022799,2]
[313390656,1707265834169,-311.40974436,0.00022799,2]
[313390657,1707265834181,-1341.53946258,0.00022799,2]
[313390658,1707265834194,-344.04532559,0.00022799,2]
[313390659,1707265834206,-352.47331021,0.00022799,2]
[313390660,1707265834230,-306.64931838,0.00022799,2]
[313390661,1707265834242,-2659.67171,0.00022799,2]
[313390662,1707265834254,-502.38963629,0.00022799,2]
[313390670,1707265837839,-27488.88202516,0.00022799,2]
[313390675,1707265838477,-42938.83841723,0.00022799,2]
[313390676,1707265838487,-55572.5208,0.000228,2]
[313390677,1707265838496,-14767.32384197,0.00022899,2]
[313390678,1707265838504,-5000.0,0.000229,2]
[313390679,1707265838514,-182.48395622,0.00022954,2]
[313390680,1707265838523,-517.16610711,0.00022954,2]
[313390681,1707265838532,-637.10792688,0.00022954,2]
[313390682,1707265838542,-1346.45661564,0.00022954,2]
[313390683,1707265838552,-1176.72818026,0.00022954,2]
[313390684,1707265838561,-178.41163131,0.00022998,2]
[313390685,1707265838570,-155.0,0.00022998,2]
[313390686,1707265838580,-3429.28327172,0.00022998,2]
[313390687,1707265838589,-199703.6957572,0.00023,2]
[313390688,1707265838647,-1984.03759988,0.00023,2]
[313390689,1707265838660,-17273.2,0.00023,2]
[313390690,1707265838681,-12020.82184978,0.00023,2]
[313390697,1707265840611,-1094.30852821,0.00023,2]
[313390698,1707265840623,-304.412954,0.00023,2]
[313390710,1707265841526,-163506.95215503,0.00023,2]
[313390731,1707265843272,-1032.72837287,0.00023,2]
[313390733,1707265843291,-268.259,0.00023,2]
[313390734,1707265843303,-3093.53077862,0.00023,2]
[313390740,1707265845906,-327.56288455,0.00023,2]
[313390825,1707266015564,421.03960501,0.00022077,2]
[313390826,1707266036610,156.08735628,0.00022434,2]
[313390827,1707266065926,155.0,0.00022,2]
[313390828,1707266506507,435.42,0.00020674,2]
[313390829,1707266640487,358.29,0.00022366,2]
[313390830,1707266649272,2209.76,0.0002241,2]
[313390831,1707266653012,265.54,0.0002705,120]
[313390832,1707266667545,2987.57,0.00022317,2]
[313390833,1707266724571,10000.0,0.00022247,2]
[313390834,1707266729197,189.12,0.00022306,2]
[313390835,1707266730389,5559.62,0.00022306,2]
[313390836,1707266758785,3596.28,0.00022306,2]
[313390837,1707266770843,1827.86,0.00022378,2]
[313390838,1707266808768,1000.0,0.00022379,2]
[313390839,1707266810041,182.65,0.00022379,2]
[313390840,1707266847015,1907.15,0.00022298,2]
[313390841,1707266847258,487.11,0.00022298,2]
[313390842,1707266860659,1679.53,0.00022298,2]
[313390843,1707266862232,23900.0,0.00022453,2]
[313390844,1707266888678,164.77,0.00022361,2]
[313390845,1707266915137,2705.0,0.00022378,2]
[313390846,1707266950146,456.75,0.00020205,2]
[313390847,1707266950360,456.75,0.00022469,2]
[313390848,1707266986926,155.57249952,0.00022434,2]
[313390849,1707266988980,150.0,0.00022114,2]
[313390850,1707267004338,205.0,0.00022107,2]
[313390874,1707267032035,-719.28417774,0.00022518,2]
[313390875,1707267032044,-250.0,0.00022519,2]
[313390876,1707267032053,-1073.04285014,0.00022533,5]
[313390878,1707267032065,-4759.75102724,0.00022533,5]
[313390879,1707267032075,-300.0,0.00022534,2]
[313390880,1707267032084,-150.0,0.00022534,2]
[313390881,1707267032093,-31677.3558,0.00022535,2]
[313390882,1707267032102,-1852.42,0.00022541,2]
[313390883,1707267032112,-769.2482803,0.00022569,2]
[313390884,1707267032121,-159.67,0.0002261,2]
[313390885,1707267032130,-2000.0,0.00022637,2]
[313390886,1707267032139,-159.67,0.00022757,2]
[313390887,1707267032148,-154.24786,0.0002277,2]
[313390888,1707267032157,-150.0,0.00022771,2]
[313390889,1707267032170,-150.0,0.00022802,2]
[313390890,1707267032179,-499.99,0.00022802,2]
[313390891,1707267032188,-187.6748918,0.00022826,2]
[313390892,1707267032197,-178.02648423,0.000229,2]
[313390893,1707267032207,-157.17895381,0.000229,2]
[313390894,1707267032216,-159.67,0.00022904,2]
[313390895,1707267032225,-1375.35438695,0.00022907,2]
[313390896,1707267032234,-517.16610711,0.00022952,2]
[313390897,1707267032243,-6208.64357198,0.00022954,2]
[313390898,1707267032252,-160.11610669,0.00022997,2]
[313390899,1707267032262,-195.73557477,0.00022998,2]
[313390900,1707267032271,-1110.07637616,0.00022999,2]
[313390901,1707267032280,-155.0,0.00022999,2]
[313390902,1707267032289,-1308.60310342,0.00022999,2]
[313390903,1707267032299,-215.13662202,0.00022999,2]
[313390904,1707267032308,-67345.53861747,0.00022999,2]
[313390905,1707267032320,-118258.17903188,0.00022999,2]
[313390907,1707267032340,-46724.56306571,0.00022999,2]
[313390908,1707267032349,-46005.66383615,0.00023,2]
[313390909,1707267032361,-4810.59504121,0.00023,2]
[313390910,1707267032372,-6817.37904557,0.00023,2]
[313390918,1707267038100,-10200.0,0.00023,2]
[313390921,1707267038112,-548.04574173,0.00023,2]
[313390932,1707267038325,-18210.71383782,0.00023,2]
[313390933,1707267038337,-1086089.9834153,0.00023,2]
[313390934,1707267038347,-159.67,0.00023051,2]
[313390935,1707267038357,-159.67,0.00023199,2]
[313390936,1707267038367,-159.67,0.00023346,2]
[313390937,1707267038376,-159.67,0.00023493,2]
[313390938,1707267038386,-159.67,0.0002364,2]
[313390939,1707267038395,-159.67,0.00023788,2]
[313390940,1707267038405,-358.29,0.0002401,2]
[313390941,1707267038414,-500.0,0.00024304,2]
[313390942,1707267038424,-2029.79,0.00024384,2]
[313390943,1707267038434,-407.0,0.00024473,2]
[313390944,1707267038447,-182.65,0.00024617,2]
[313390945,1707267038457,-250.0,0.00024658,2]
[313390946,1707267038467,-456.75,0.00024733,2]
[313390947,1707267038477,-1808.87968704,0.00025,7]
[313390948,1707267038487,-350.0,0.00025,3]
[313390949,1707267038496,-1000.0,0.00025177,2]
[313390950,1707267038506,-6208.64357198,0.00025393,2]
[313390951,1707267038515,-155.57249952,0.00025551,2]
[313390952,1707267038524,-358.29,0.00025654,2]
[313390953,1707267038534,-500.0,0.00025792,2]
[313390954,1707267038543,-205.0,0.00025896,7]
[313390955,1707267038553,-150.0,0.00026079,2]
[313390956,1707267038562,-1000.0,0.000263,2]
[313390957,1707267038571,-1375.35438694,0.00026746,3]
[313390958,1707267038581,-182.65,0.00026855,2]
[313390959,1707267038590,-547.0,0.000269,2]
[313390960,1707267038599,-456.75,0.00026997,2]
[313390961,1707267038609,-400.0,0.00027,3]
[313390963,1707267038618,-511.26955745,0.0002705,2]
[313390965,1707267038627,-200.0,0.0002705,2]
[313390967,1707267038638,-7042.01977961,0.0002705,2]
[313390968,1707267038649,-500.0,0.0002728,2]
[313390971,1707267038658,-358.29,0.00027298,2]
[313390974,1707267038667,-151.43190648,0.0002732,2]
[313390977,1707267038677,-2419.0,0.000274,2]
[313390979,1707267038687,-10064.0,0.000274,2]
[313390981,1707267038696,-6208.64357198,0.00027831,2]
[313390982,1707267038706,-1000.0,0.00027974,2]
[313390984,1707267038715,-155.57249952,0.00028667,2]
[313390986,1707267038725,-500.0,0.00028768,2]
[313390988,1707267038734,-200.0,0.00028768,2]
[313390990,1707267038744,-358.29,0.00028941,2]
[313390992,1707267038753,-450.0,0.00029,3]
[313390994,1707267038762,-456.75,0.00029261,2]
[313390996,1707267038771,-155.0,0.000295,3]
[313390998,1707267038781,-205.0,0.00029685,13]
[313391000,1707267038790,-155.0,0.0003,2]
[313391001,1707267038799,-1704.186786,0.0003,7]
[313391003,1707267038809,-1500.0,0.00030137,7]
[313391005,1707267038818,-500.0,0.00030256,2]
[313391007,1707267038827,-6208.64357198,0.0003027,2]
[313391009,1707267038836,-365.66,0.00030349,2]
[313391011,1707267038846,-1232.0,0.00030349,2]
[313391012,1707267038855,-273.995,0.00030349,2]
[313391013,1707267038864,-150.768,0.00030349,2]
[313391014,1707267038874,-164.167,0.00030349,2]
[313391015,1707267038882,-706.319,0.00030349,2]
[313391016,1707267038891,-272.715,0.00030349,2]
[313391017,1707267038901,-500.718,0.00030349,2]
[313391018,1707267038910,-395.872,0.00030349,2]
[313391019,1707267038919,-208.874,0.00030349,2]
[313391020,1707267038928,-150.0,0.00030349,2]
[313391021,1707267038938,-247.552,0.00030349,2]
[313391022,1707267038947,-1375.35438694,0.00030585,5]
[313391023,1707267038956,-358.29,0.00030585,2]
[313391024,1707267038966,-1000.0,0.00030772,2]
[313391026,1707267038975,-84773.69268964,0.00031,7]
[313391027,1707267038984,-500.0,0.00031,3]
[313391029,1707267038993,-189.12,0.00031228,2]
[313391031,1707267039003,-151.43190648,0.00031277,2]
[313391033,1707267039012,-151.0207,0.00031448,7]
[313391036,1707267039023,-456.75,0.00031525,2]
[313391038,1707267039033,-180.0,0.00031644,2]
[313391040,1707267039042,-5000.0,0.000317,2]
[313391042,1707267039052,-500.0,0.00031744,2]
[313391044,1707267039061,-151.0207,0.00031748,7]
[313391046,1707267039070,-155.57249952,0.00031784,2]
[313391048,1707267039080,-25812.5158685,0.000318,3]
[313391050,1707267039089,-6208.64357198,0.00032709,4]
[313391052,1707267039098,-151.0207,0.00032748,7]
[313391054,1707267039107,-14532.22316447,0.0003278,5]
[313391056,1707267039116,-550.0,0.00033,3]
[313391059,1707267039134,-500.0,0.00033231,2]
[313391061,1707267039145,-150.0,0.00033349,2]
[313391063,1707267039155,-205.0,0.00033475,19]
[313391065,1707267039164,-1000.0,0.00033569,2]
[313391067,1707267039174,-151.0207,0.00033748,7]
[313391069,1707267039183,-456.75,0.00033788,2]
[313391071,1707267039193,-154.6947835,0.000339,2]
[313391074,1707267039203,-176.99,0.00034,2]
[313391076,1707267039213,-1375.35438694,0.00034424,7]
[313391078,1707267039222,-151.0207,0.00034448,7]
[313391080,1707267039232,-353.41,0.00034548,2]
[313391082,1707267039241,-500.0,0.00034719,2]
[313391084,1707267039250,-800.0,0.00034719,2]
[313391086,1707267039259,-800.0,0.0003472,2]
[313391088,1707267039269,-800.0,0.0003472,2]
[313391090,1707267039278,-800.0,0.0003472,2]
[313391092,1707267039287,-175.44691351,0.00034899,2]
[313391094,1707267039298,-1000.0,0.000349,2]
[313391096,1707267039307,-547.01751063,0.000349,2]
[313391098,1707267039317,-547.01751062,0.000349,2]
[313391100,1707267039327,-547.01751062,0.000349,2]
[313391102,1707267039337,-547.01751062,0.000349,2]
[313391104,1707267039347,-547.01751062,0.000349,2]
[313391106,1707267039357,-547.01751062,0.000349,2]
[313391108,1707267039366,-547.01751062,0.000349,2]
[313391110,1707267039376,-547.01751062,0.000349,2]
[313391112,1707267039386,-972.37661035,0.000349,24]
[313391114,1707267039395,-155.57249952,0.000349,2]
[313391116,1707267039405,-16681.40344473,0.00034997,2]
[313391118,1707267039415,-150.0,0.00034999,2]
[313391120,1707267039424,-150.0,0.00034999,2]
[313391122,1707267039434,-150.0,0.00034999,2]
[313391124,1707267039445,-268.28668936,0.00034999,2]
[313391126,1707267039454,-150.0,0.00034999,2]
[313391128,1707267039464,-667935.2762693,0.00035,3]
[313391130,1707267039474,-673451.10504946,0.00035,7]
[313391148,1707267039637,-17252.0,0.00035,7]
[313391333,1707267041347,-769.2482804,0.00023112,2]
[313391334,1707267041356,-249.52822001,0.00035,7]
[313391335,1707267041367,-862.19,0.00035,7]
[313391336,1707267041378,-657.02183902,0.00035,7]
[313391338,1707267041389,-15676.81570379,0.00035,7]
[313391404,1707267043102,-303.03077085,0.00035,7]
[313391405,1707267043119,-775.12289306,0.00035,7]
[313391406,1707267043135,-690.33082187,0.00035,7]
[313391407,1707267043150,-13434.60706334,0.00035,7]
[313391408,1707267043211,-297.87035,0.00035,7]
[313391409,1707267043269,-3790.4668495,0.00035,7]
[313391410,1707267043327,-2512.81682625,0.00035,7]
[313391411,1707267043338,-848.89,0.00035,7]
[313391412,1707267043350,-1190.88001,0.00035,7]
[313391416,1707267046094,-497.0,0.00035,5]
[313391417,1707267046103,-5284.88633881,0.00035,7]
[313391418,1707267046115,-2067.30774244,0.00035,7]
[313391419,1707267046213,-6690.07556095,0.00035,7]
[313391420,1707267046225,-506.70909012,0.00035,7]
[313391421,1707267046236,-3886.9910218,0.00035,7]
[313391422,1707267046248,-495.71718931,0.00035,7]
[313391423,1707267046269,-366.49928082,0.00035,7]
[313391424,1707267046280,-2309.32890359,0.00035,7]
[313391425,1707267046327,-3116.49657769,0.00035,7]
[313391426,1707267046339,-18252.97645321,0.00035,7]
[313391427,1707267046350,-643.97892178,0.00035,7]
[313391428,1707267046361,-910.07126,0.00035,7]
[313391429,1707267046373,-289.63799347,0.00035,7]
[313391430,1707267046386,-8775.83091719,0.00035,7]
[313391458,1707267121893,2151.752,0.00022433,2]
[313391459,1707267124311,205.0,0.00022107,2]
[313391460,1707267150343,300.0,0.00022418,2]
[313391461,1707267151102,3134.76429599,0.00021753,2]
[313391462,1707267153770,205.0,0.00022107,2]